[Event "NOR-ch Various 2019"]
[Site "Larvik"]
[Date "2019.07.09"]
[Round "5.8"]
[White "Oldernes, Lars-Arne"]
[Black "Odegaard, Per Chr"]
[Result "1/2-1/2"]
[ECO "E70"]
[WhiteElo "1684"]
[BlackElo "1754"]
[Annotator "NA"]
[PlyCount "65"]
[EventDate "2019.07.06"]
[EventType "swiss"]
[EventCountry "NOR"]
[SourceTitle "playchess.com"]
[Source "ChessBase"]
[SourceQuality "1"]
[TimeControl "40/5400+30:1800+30"]

1. d4 {[%emt 0:00:00]} Nf6 {[%emt 0:00:14]} 2. c4 {[%emt 0:00:00]} g6 {[%emt 0:00:27]} 3. Nc3 {[%emt 0:00:00]} Bg7 {[%emt 0:00:06]} 4. e4 {[%emt 0:00:30]} d6 {[%emt 0:00:20]} 5. Bg5 {[%emt 0:06:58]} O-O {[%emt 0:05:09]} 6. Qd2 {[%emt 0:09:21]} c6 {[%emt 0:04:36]} 7. O-O-O {[%emt 0:00:40]} Qa5 {[%emt 0:03:37]} 8. Kb1 {[%emt 0:08:18]} a6 {[%emt 0:01:25]} 9. f4 {[%emt 0:07:30]} Qc7 {[%emt 0:07:19]} 10. e5 {[%emt 0:06:46]} Bf5+ {[%emt 0:04:56]} 11. Bd3 {[%emt 0:00:25]} Bxd3+ {[%emt 0:02:48]} 12. Qxd3 {[%emt 0:00:08]} Ne8 {[%emt 0:03:44]} 13. h4 {[%emt 0:10:43]} Qd7 {[%emt 0:11:56]} 14. h5 {[%emt 0:00:34]} f6 {[%emt 0:01:35]} 15. Bh4 {[%emt 0:05:52]} Qf5 {[%emt 0:04:03]} 16. Qxf5 {[%emt 0:01:02]} gxf5 {[%emt 0:00:12]} 17. e6 {[%emt 0:00:52]} Bh6 {[%emt 0:02:16]} 18. Nge2 {[%emt 0:00:44]} b5 {[%emt 0:01:25]} 19. d5 {[%emt 0:02:26]} bxc4 {[%emt 0:03:02]} 20. Nd4 {[%emt 0:00:37]} Bxf4 {[%emt 0:07:36]} 21. dxc6 {[%emt 0:03:10]} Be5 {[%emt 0:06:34]} 22. Nxf5 {[%emt 0:01:40]} Nxc6 {[%emt 0:00:38]} 23. Nd5 {[%emt 0:00:35]} Ra7 {[%emt 0:02:34]} 24. Rc1 {[%emt 0:04:11]} Rb7 {[%emt 0:01:27]} 25. Rc2 {[%emt 0:00:35]} Ng7 {[%emt 0:01:23]} 26. Nxg7 {[%emt 0:03:19]} Kxg7 {[%emt 0:00:49]} 27. Rxc4 {[%emt 0:00:12]} Rxb2+ {[%emt 0:02:34]} 28. Kc1 {[%emt 0:00:05]} Rxa2 {[%emt 0:00:49]} 29. Rh3 {[%emt 0:02:33]} Rc8 {[%emt 0:01:49]} 30. Nb6 {[%emt 0:05:22]} Rc7 {[%emt 0:01:24]} 31. Nd5 {[%emt 0:00:13]} Rc8 {[%emt 0:00:27]} 32. Nb6 {[%emt 0:01:35]} Rc7 {[%emt 0:00:44]} 33. Nd5 {[%emt 0:00:05]} 1/2-1/2

[Event "NOR-ch Various 2019"]
[Site "Larvik"]
[Date "2019.07.09"]
[Round "5.9"]
[White "Roste, Stein"]
[Black "Wullum, Robin"]
[Result "0-1"]
[ECO "E32"]
[WhiteElo "1321"]
[BlackElo "1452"]
[Annotator "NA"]
[PlyCount "70"]
[EventDate "2019.07.06"]
[EventType "swiss"]
[EventCountry "NOR"]
[SourceTitle "playchess.com"]
[Source "ChessBase"]
[SourceQuality "1"]
[TimeControl "40/5400+30:1800+30"]

1. d4 {[%emt 0:00:00]} Nf6 {[%emt 0:00:00]} 2. c4 {[%emt 0:00:25]} e6 {[%emt 0:00:03]} 3. Nf3 {[%emt 0:01:04]} Bb4+ {[%emt 0:00:17]} 4. Nc3 {[%emt 0:00:57]} O-O {[%emt 0:00:09]} 5. Qc2 {[%emt 0:01:13]} d5 {[%emt 0:00:26]} 6. a3 {[%emt 0:03:35]} Be7 {[%emt 0:00:14]} 7. c5 {[%emt 0:01:27]} b6 {[%emt 0:00:14]} 8. b4 {[%emt 0:00:19]} a5 {[%emt 0:00:10]} 9. Bb2 {[%emt 0:01:48]} c6 {[%emt 0:01:28]} 10. e3 {[%emt 0:01:51]} b5 {[%emt 0:00:25]} 11. Bd3 {[%emt 0:01:17]} Nbd7 {[%emt 0:00:29]} 12. O-O {[%emt 0:01:14]} Qc7 {[%emt 0:00:06]} 13. e4 {[%emt 0:01:57]} Nxe4 {[%emt 0:00:33]} 14. Nxe4 {[%emt 0:00:30]} dxe4 {[%emt 0:00:07]} 15. Bxe4 {[%emt 0:00:12]} Nf6 {[%emt 0:00:06]} 16. Ne5 {[%emt 0:03:09]} Bb7 {[%emt 0:00:41]} 17. f4 {[%emt 0:06:05]} g6 {[%emt 0:00:37]} 18. Rf3 {[%emt 0:14:30]} Nd5 {[%emt 0:00:17]} 19. Bxd5 {[%emt 0:00:46]} exd5 {[%emt 0:00:13]} 20. f5 {[%emt 0:01:36]} f6 {[%emt 0:02:18]} 21. fxg6 {[%emt 0:13:01]} fxe5 {[%emt 0:04:28]} 22. gxh7+ {[%emt 0:00:15]} Kh8 {[%emt 0:00:14]} 23. dxe5 {[%emt 0:00:42]} Rxf3 {[%emt 0:00:19]} 24. gxf3 {[%emt 0:00:14]} Qd8 {[%emt 0:00:23]} 25. e6+ {[%emt 0:01:56]} Bf6 {[%emt 0:00:06]} 26. f4 {[%emt 0:08:37]} axb4 {[%emt 0:02:33]} 27. Re1 {[%emt 0:05:11]} Qe7 {[%emt 0:03:55]} 28. axb4 {[%emt 0:01:14]} Qg7+ {[%emt 0:00:16]} 29. Kh1 {[%emt 0:01:10]} Bxb2 {[%emt 0:00:09]} 30. Rg1 {[%emt 0:00:46]} Ra1 {[%emt 0:07:54]} 31. Rxa1 {[%emt 0:00:39]} Bxa1 {[%emt 0:00:11]} 32. Qf5 {[%emt 0:01:30]} Bd4 {[%emt 0:00:41]} 33. Qg5 {[%emt 0:00:33]} Qxg5 {[%emt 0:00:30]} 34. fxg5 {[%emt 0:00:08]} Bc8 {[%emt 0:00:07]} 35. e7 {[%emt 0:01:38]} Bd7 {[%emt 0:00:02]} 0-1

[Event "NOR-ch Various 2019"]
[Site "Larvik"]
[Date "2019.07.09"]
[Round "5.10"]
[White "Hansen, Roy Drange"]
[Black "Vaseng, Oyvind Hoem"]
[Result "1-0"]
[ECO "C78"]
[WhiteElo "1515"]
[BlackElo "1531"]
[Annotator "NA"]
[PlyCount "69"]
[EventDate "2019.07.06"]
[EventType "swiss"]
[EventCountry "NOR"]
[SourceTitle "playchess.com"]
[Source "ChessBase"]
[SourceQuality "1"]
[TimeControl "40/5400+30:1800+30"]

1. e4 {[%emt 0:00:00]} e5 {[%emt 0:00:00]} 2. Nf3 {[%emt 0:00:00]} Nc6 {[%emt 0:00:00]} 3. Bb5 {[%emt 0:00:00]} a6 {[%emt 0:00:00]} 4. Ba4 {[%emt 0:00:01]} Bc5 {[%emt 0:00:37]} 5. O-O {[%emt 0:00:14]} d6 {[%emt 0:00:24]} 6. c3 {[%emt 0:00:36]} b5 {[%emt 0:02:48]} 7. Bb3 {[%emt 0:00:15]} Nf6 {[%emt 0:00:36]} 8. d3 {[%emt 0:00:14]} O-O {[%emt 0:01:38]} 9. Bg5 {[%emt 0:00:30]} Be6 {[%emt 0:03:27]} 10. Nbd2 {[%emt 0:01:09]} b4 {[%emt 0:03:02]} 11. Ba4 {[%emt 0:04:58]} Bd7 {[%emt 0:01:28]} 12. Nc4 {[%emt 0:01:36]} Re8 {[%emt 0:02:24]} 13. Bxc6 {[%emt 0:04:32]} Bxc6 {[%emt 0:00:09]} 14. Na5 {[%emt 0:00:11]} Bd7 {[%emt 0:03:33]} 15. Nb7 {[%emt 0:06:23]} Qe7 {[%emt 0:00:10]} 16. Nxc5 {[%emt 0:00:56]} dxc5 {[%emt 0:00:02]} 17. h3 {[%emt 0:06:15]} bxc3 {[%emt 0:03:01]} 18. bxc3 {[%emt 0:00:58]} Qd6 {[%emt 0:01:29]} 19. c4 {[%emt 0:01:32]} Rab8 {[%emt 0:00:40]} 20. Rb1 {[%emt 0:06:24]} h6 {[%emt 0:01:54]} 21. Bh4 {[%emt 0:03:38]} Nh5 {[%emt 0:00:10]} 22. Bg3 {[%emt 0:05:53]} Nxg3 {[%emt 0:04:21]} 23. fxg3 {[%emt 0:00:14]} f5 {[%emt 0:02:15]} 24. Qc2 {[%emt 0:05:28]} Qg6 {[%emt 0:13:04]} 25. Rxb8 {[%emt 0:01:44]} Rxb8 {[%emt 0:01:21]} 26. Nxe5 {[%emt 0:00:19]} Qe6 {[%emt 0:04:51]} 27. Nxd7 {[%emt 0:00:56]} Qxd7 {[%emt 0:00:01]} 28. Rxf5 {[%emt 0:09:05]} g6 {[%emt 0:21:51]} 29. Rd5 {[%emt 0:04:04]} Qg7 {[%emt 0:01:38]} 30. e5 {[%emt 0:04:17]} Qe7 {[%emt 0:02:34]} 31. Qf2 {[%emt 0:03:22]} Rf8 {[%emt 0:05:02]} 32. Qe3 {[%emt 0:06:15]} Qf7 {[%emt 0:08:36]} 33. Qe2 {[%emt 0:03:56]} Qe7 {[%emt 0:01:49]} 34. Qg4 {[%emt 0:02:20]} Qe8 {[%emt 0:05:29]} 35. Qd7 {[%emt 0:05:32]} 1-0

[Event "NOR-ch Various 2019"]
[Site "Larvik"]
[Date "2019.07.09"]
[Round "5.11"]
[White "Soderholm, Markus"]
[Black "Nordlov, Jorgen"]
[Result "0-1"]
[ECO "D85"]
[WhiteElo "1329"]
[BlackElo "1263"]
[Annotator "NA"]
[PlyCount "78"]
[EventDate "2019.07.06"]
[EventType "swiss"]
[EventCountry "NOR"]
[SourceTitle "playchess.com"]
[Source "ChessBase"]
[SourceQuality "1"]
[TimeControl "40/5400+30:1800+30"]

1. d4 {[%emt 0:00:00]} Nf6 {[%emt 0:00:00]} 2. c4 {[%emt 0:00:00]} g6 {[%emt 0:00:00]} 3. Nc3 {[%emt 0:00:21]} d5 {[%emt 0:00:02]} 4. cxd5 {[%emt 0:03:26]} Nxd5 {[%emt 0:00:15]} 5. e4 {[%emt 0:00:22]} Nxc3 {[%emt 0:00:21]} 6. bxc3 {[%emt 0:00:29]} Bg7 {[%emt 0:00:07]} 7. g3 {[%emt 0:07:25]} c5 {[%emt 0:00:52]} 8. Bb5+ {[%emt 0:12:14]} Nc6 {[%emt 0:01:28]} 9. Bxc6+ {[%emt 0:00:34]} bxc6 {[%emt 0:00:24]} 10. Bb2 {[%emt 0:02:36]} Qa5 {[%emt 0:01:31]} 11. Ne2 {[%emt 0:02:42]} Bg4 {[%emt 0:02:03]} 12. O-O {[%emt 0:00:34]} Rb8 {[%emt 0:01:55]} 13. Qc2 {[%emt 0:03:29]} Qb5 {[%emt 0:02:23]} 14. f3 {[%emt 0:06:51]} Bd7 {[%emt 0:05:19]} 15. Rab1 {[%emt 0:02:23]} O-O {[%emt 0:00:19]} 16. Ba1 {[%emt 0:02:25]} Qc4 {[%emt 0:00:44]} 17. Rxb8 {[%emt 0:02:55]} Rxb8 {[%emt 0:01:21]} 18. Rd1 {[%emt 0:04:10]} Rd8 {[%emt 0:07:20]} 19. Kg2 {[%emt 0:03:43]} Bc8 {[%emt 0:01:29]} 20. dxc5 {[%emt 0:03:23]} Rxd1 {[%emt 0:01:47]} 21. Qxd1 {[%emt 0:00:13]} Ba6 {[%emt 0:00:25]} 22. Nd4 {[%emt 0:05:39]} Qxc5 {[%emt 0:05:56]} 23. Qb3 {[%emt 0:02:24]} Qd6 {[%emt 0:03:33]} 24. Qa4 {[%emt 0:00:54]} c5 {[%emt 0:01:30]} 25. Qe8+ {[%emt 0:00:53]} Bf8 {[%emt 0:00:30]} 26. Nc6 {[%emt 0:01:14]} Bb5 {[%emt 0:01:55]} 27. Nxe7+ {[%emt 0:00:53]} Qxe7 {[%emt 0:02:56]} 28. Qxb5 {[%emt 0:00:27]} Qd8 {[%emt 0:01:32]} 29. c4 {[%emt 0:03:11]} Qd2+ {[%emt 0:01:03]} 30. Kh3 {[%emt 0:00:46]} Qd1 {[%emt 0:00:48]} 31. Qb2 {[%emt 0:01:16]} Qf1+ {[%emt 0:11:51]} 32. Kh4 {[%emt 0:00:57]} Be7+ {[%emt 0:01:13]} 33. Kg4 {[%emt 0:00:42]} f6 {[%emt 0:05:45]} 34. f4 {[%emt 0:05:38]} h5+ {[%emt 0:01:56]} 35. Kh4 {[%emt 0:00:55]} f5+ {[%emt 0:02:07]} 36. Qf6 {[%emt 0:00:10]} Bxf6+ {[%emt 0:00:37]} 37. Bxf6 {[%emt 0:00:06]} Qf3 {[%emt 0:01:04]} 38. Kg5 {[%emt 0:00:52]} Qg4+ {[%emt 0:00:33]} 39. Kh6 {[%emt 0:00:13]} fxe4 {[%emt 0:00:13]} 0-1

[Event "NOR-ch Various 2019"]
[Site "Larvik"]
[Date "2019.07.09"]
[Round "5.12"]
[White "Skretteberg, Martin"]
[Black "Ratama, Sofie Kristine"]
[Result "0-1"]
[ECO "B56"]
[WhiteElo "1397"]
[BlackElo "1329"]
[Annotator "NA"]
[PlyCount "98"]
[EventDate "2019.07.06"]
[EventType "swiss"]
[EventCountry "NOR"]
[SourceTitle "playchess.com"]
[Source "ChessBase"]
[SourceQuality "1"]
[TimeControl "40/5400+30:1800+30"]

1. e4 {[%emt 0:00:00]} c5 {[%emt 0:00:00]} 2. Nf3 {[%emt 0:00:25]} d6 {[%emt 0:00:37]} 3. Nc3 {[%emt 0:01:08]} Nc6 {[%emt 0:00:27]} 4. Bb5 {[%emt 0:01:38]} Nf6 {[%emt 0:01:30]} 5. d4 {[%emt 0:03:47]} cxd4 {[%emt 0:00:21]} 6. Nxd4 {[%emt 0:00:31]} Bd7 {[%emt 0:00:17]} 7. O-O {[%emt 0:01:23]} a6 {[%emt 0:03:04]} 8. Bc4 {[%emt 0:04:25]} g6 {[%emt 0:03:16]} 9. Re1 {[%emt 0:04:07]} Bg7 {[%emt 0:06:03]} 10. Be3 {[%emt 0:03:31]} O-O {[%emt 0:02:06]} 11. Qd2 {[%emt 0:03:38]} Rc8 {[%emt 0:02:58]} 12. Be2 {[%emt 0:04:16]} Qc7 {[%emt 0:05:19]} 13. h3 {[%emt 0:05:21]} Rfd8 {[%emt 0:06:09]} 14. Nf3 {[%emt 0:13:52]} Be8 {[%emt 0:04:42]} 15. Qc1 {[%emt 0:03:30]} e6 {[%emt 0:11:00]} 16. Na4 {[%emt 0:06:39]} Nd7 {[%emt 0:05:14]} 17. Nc3 {[%emt 0:01:40]} Nf6 {[%emt 0:04:31]} 18. Rd1 {[%emt 0:01:57]} Ne7 {[%emt 0:02:01]} 19. Bh6 {[%emt 0:01:37]} d5 {[%emt 0:02:46]} 20. Bxg7 {[%emt 0:02:42]} Kxg7 {[%emt 0:00:17]} 21. e5 {[%emt 0:05:26]} Nd7 {[%emt 0:00:45]} 22. Qg5 {[%emt 0:03:20]} Nc6 {[%emt 0:01:55]} 23. Re1 {[%emt 0:05:44]} Ndxe5 {[%emt 0:01:06]} 24. Nxe5 {[%emt 0:00:26]} Qxe5 {[%emt 0:01:27]} 25. Qxe5+ {[%emt 0:01:03]} Nxe5 {[%emt 0:00:22]} 26. Bxa6 {[%emt 0:04:46]} bxa6 {[%emt 0:02:58]} 27. Rxe5 {[%emt 0:00:14]} d4 {[%emt 0:01:15]} 28. Ne4 {[%emt 0:04:15]} Rxc2 {[%emt 0:01:13]} 29. b3 {[%emt 0:02:15]} d3 {[%emt 0:01:55]} 30. Rc5 {[%emt 0:01:18]} f5 {[%emt 0:04:01]} 31. Nc3 {[%emt 0:03:30]} d2 {[%emt 0:01:02]} 32. Rd1 {[%emt 0:01:27]} Rc1 {[%emt 0:01:40]} 33. Kf1 {[%emt 0:00:50]} Bb5+ {[%emt 0:00:33]} 34. Rxb5 {[%emt 0:02:36]} axb5 {[%emt 0:00:18]} 35. Ke2 {[%emt 0:00:51]} b4 {[%emt 0:00:32]} 36. Nb1 {[%emt 0:01:21]} Rc2 {[%emt 0:01:18]} 37. Rxd2 {[%emt 0:01:06]} Rdxd2+ {[%emt 0:00:18]} 38. Nxd2 {[%emt 0:00:08]} Rxa2 {[%emt 0:01:05]} 39. Kd3 {[%emt 0:00:23]} Kf7 {[%emt 0:00:16]} 40. f4 {[%emt 0:02:17]} Ke7 {[%emt 0:00:44]} 41. g4 {[%emt 0:02:57]} fxg4 {[%emt 0:04:49]} 42. hxg4 {[%emt 0:00:12]} Ra8 {[%emt 0:00:40]} 43. Nc4 {[%emt 0:01:33]} Rd8+ {[%emt 0:00:28]} 44. Ke4 {[%emt 0:00:44]} h5 {[%emt 0:01:10]} 45. Ne5 {[%emt 0:01:30]} Ke8 {[%emt 0:05:37]} 46. Nxg6 {[%emt 0:05:33]} hxg4 {[%emt 0:00:21]} 47. Ne5 {[%emt 0:00:08]} g3 {[%emt 0:00:45]} 48. Kf3 {[%emt 0:00:34]} Rc8 {[%emt 0:00:26]} 49. Nc4 {[%emt 0:01:32]} Rxc4 {[%emt 0:00:25]} 0-1

[Event "NOR-ch Various 2019"]
[Site "Larvik"]
[Date "2019.07.09"]
[Round "5.15"]
[White "Fossan, Petter"]
[Black "Boger, Raymond"]
[Result "1-0"]
[ECO "B06"]
[WhiteElo "2295"]
[BlackElo "1957"]
[Annotator "NA"]
[PlyCount "77"]
[EventDate "2019.07.06"]
[EventType "swiss"]
[EventCountry "NOR"]
[SourceTitle "playchess.com"]
[Source "ChessBase"]
[SourceQuality "1"]
[TimeControl "40/5400+30:1800+30"]

1. e4 {[%emt 0:00:13]} g6 {[%emt 0:00:00]} 2. d4 {[%emt 0:00:06]} Bg7 {[%emt 0:00:00]} 3. Nc3 {[%emt 0:00:07]} d6 {[%emt 0:01:15]} 4. f4 {[%emt 0:00:17]} Nc6 {[%emt 0:01:12]} 5. Be3 {[%emt 0:05:18]} Nh6 {[%emt 0:04:51]} 6. Nf3 {[%emt 0:04:26]} Bg4 {[%emt 0:03:50]} 7. Qd2 {[%emt 0:01:10]} Bxf3 {[%emt 0:04:17]} 8. gxf3 {[%emt 0:00:11]} e5 {[%emt 0:01:19]} 9. fxe5 {[%emt 0:04:24]} dxe5 {[%emt 0:01:29]} 10. Bg5 {[%emt 0:04:53]} exd4 {[%emt 0:17:09]} 11. Nd1 {[%emt 0:12:09]} Ne5 {[%emt 0:08:55]} 12. Be2 {[%emt 0:03:44]} Bf6 {[%emt 0:15:33]} 13. Bxf6 {[%emt 0:01:49]} Qxf6 {[%emt 0:00:12]} 14. Qxh6 {[%emt 0:00:05]} Nxf3+ {[%emt 0:04:55]} 15. Bxf3 {[%emt 0:00:09]} Qxf3 {[%emt 0:00:09]} 16. Nf2 {[%emt 0:00:20]} f5 {[%emt 0:01:23]} 17. O-O {[%emt 0:04:13]} O-O-O {[%emt 0:02:22]} 18. Rae1 {[%emt 0:10:43]} d3 {[%emt 0:06:57]} 19. Re3 {[%emt 0:02:32]} Qh5 {[%emt 0:04:21]} 20. Qxh5 {[%emt 0:00:21]} gxh5 {[%emt 0:00:03]} 21. cxd3 {[%emt 0:01:12]} Rhg8+ {[%emt 0:01:54]} 22. Rg3 {[%emt 0:02:31]} fxe4 {[%emt 0:00:10]} 23. Nxe4 {[%emt 0:00:14]} Rxg3+ {[%emt 0:00:33]} 24. hxg3 {[%emt 0:00:05]} Rxd3 {[%emt 0:00:13]} 25. Rf8+ {[%emt 0:00:34]} Kd7 {[%emt 0:01:24]} 26. Nc5+ {[%emt 0:00:11]} Ke7 {[%emt 0:00:06]} 27. Nxd3 {[%emt 0:00:03]} Kxf8 {[%emt 0:00:07]} 28. Nc5 {[%emt 0:00:06]} Ke7 {[%emt 0:01:05]} 29. Nxb7 {[%emt 0:00:14]} Ke6 {[%emt 0:00:24]} 30. Kg2 {[%emt 0:00:20]} Kf5 {[%emt 0:00:30]} 31. Kf3 {[%emt 0:00:49]} Kg5 {[%emt 0:00:24]} 32. Na5 {[%emt 0:01:38]} h4 {[%emt 0:00:26]} 33. gxh4+ {[%emt 0:00:02]} Kxh4 {[%emt 0:00:07]} 34. Nc6 {[%emt 0:00:04]} a6 {[%emt 0:00:29]} 35. b4 {[%emt 0:01:16]} Kg5 {[%emt 0:00:36]} 36. Nb8 {[%emt 0:00:08]} Kf5 {[%emt 0:01:18]} 37. Nxa6 {[%emt 0:00:05]} Ke5 {[%emt 0:00:18]} 38. Nxc7 {[%emt 0:00:19]} Kd6 {[%emt 0:00:24]} 39. Kg4 {[%emt 0:00:18]} 1-0

[Event "NOR-ch Various 2019"]
[Site "Larvik"]
[Date "2019.07.09"]
[Round "5.17"]
[White "Bruaset, Eivind"]
[Black "Heier, Odin Nikolai"]
[Result "1-0"]
[ECO "C29"]
[WhiteElo "2074"]
[BlackElo "1863"]
[Annotator "NA"]
[PlyCount "117"]
[EventDate "2019.07.06"]
[EventType "swiss"]
[EventCountry "NOR"]
[SourceTitle "playchess.com"]
[Source "ChessBase"]
[SourceQuality "1"]
[TimeControl "40/5400+30:1800+30"]

1. e4 {[%emt 0:00:00]} e5 {[%emt 0:00:00]} 2. Nc3 {[%emt 0:00:00]} Nf6 {[%emt 0:00:07]} 3. f4 {[%emt 0:00:32]} d5 {[%emt 0:00:21]} 4. fxe5 {[%emt 0:00:00]} Nxe4 {[%emt 0:00:07]} 5. Qf3 {[%emt 0:00:00]} Nxc3 {[%emt 0:00:42]} 6. bxc3 {[%emt 0:00:00]} c5 {[%emt 0:01:06]} 7. Bb5+ {[%emt 0:00:42]} Nc6 {[%emt 0:01:29]} 8. Qg3 {[%emt 0:00:59]} g6 {[%emt 0:11:34]} 9. Nf3 {[%emt 0:02:50]} Bg7 {[%emt 0:01:30]} 10. O-O {[%emt 0:01:31]} Qa5 {[%emt 0:10:31]} 11. a4 {[%emt 0:12:54]} O-O {[%emt 0:02:28]} 12. Ba3 {[%emt 0:01:47]} Re8 {[%emt 0:10:43]} 13. Qf2 {[%emt 0:03:30]} c4 {[%emt 0:23:04]} 14. Ng5 {[%emt 0:07:04]} Be6 {[%emt 0:19:58]} 15. Nxe6 {[%emt 0:04:39]} fxe6 {[%emt 0:00:18]} 16. Qf7+ {[%emt 0:00:11]} Kh8 {[%emt 0:00:08]} 17. Qxb7 {[%emt 0:00:11]} Rec8 {[%emt 0:01:10]} 18. Bd6 {[%emt 0:11:22]} Qb6+ {[%emt 0:10:44]} 19. Qxb6 {[%emt 0:00:03]} axb6 {[%emt 0:00:06]} 20. Rf7 {[%emt 0:03:12]} Nxe5 {[%emt 0:01:15]} 21. Rxg7 {[%emt 0:00:19]} Nf3+ {[%emt 0:01:01]} 22. gxf3 {[%emt 0:00:25]} Kxg7 {[%emt 0:00:07]} 23. Re1 {[%emt 0:00:44]} Kf6 {[%emt 0:02:15]} 24. Bd7 {[%emt 0:05:41]} Rd8 {[%emt 0:00:08]} 25. Rxe6+ {[%emt 0:00:05]} Kf5 {[%emt 0:00:55]} 26. Re7+ {[%emt 0:01:36]} Rxd7 {[%emt 0:00:34]} 27. Rxd7 {[%emt 0:00:02]} Ke6 {[%emt 0:00:07]} 28. Rxh7 {[%emt 0:00:05]} Kxd6 {[%emt 0:00:05]} 29. Rg7 {[%emt 0:00:07]} Rxa4 {[%emt 0:00:54]} 30. Rxg6+ {[%emt 0:00:01]} Kc5 {[%emt 0:00:58]} 31. h4 {[%emt 0:00:17]} Ra8 {[%emt 0:00:25]} 32. h5 {[%emt 0:00:28]} Rh8 {[%emt 0:00:25]} 33. h6 {[%emt 0:00:09]} b5 {[%emt 0:00:30]} 34. Kf2 {[%emt 0:00:58]} d4 {[%emt 0:00:40]} 35. f4 {[%emt 0:02:10]} dxc3 {[%emt 0:00:19]} 36. dxc3 {[%emt 0:00:02]} Kd5 {[%emt 0:00:11]} 37. Kf3 {[%emt 0:00:14]} Rh7 {[%emt 0:00:33]} 38. Kg4 {[%emt 0:00:20]} Ke4 {[%emt 0:00:26]} 39. Re6+ {[%emt 0:00:14]} Kd5 {[%emt 0:00:11]} 40. Re5+ {[%emt 0:00:02]} Kd6 {[%emt 0:00:49]} 41. Rxb5 {[%emt 0:30:17]} Rh8 {[%emt 0:30:56]} 42. Kh5 {[%emt 0:00:15]} Ke7 {[%emt 0:00:35]} 43. Rb6 {[%emt 0:00:47]} Kf7 {[%emt 0:00:14]} 44. f5 {[%emt 0:00:10]} Rf8 {[%emt 0:00:38]} 45. Kg5 {[%emt 0:00:24]} Kg8 {[%emt 0:00:19]} 46. Kg6 {[%emt 0:00:15]} Kh8 {[%emt 0:00:22]} 47. Rb7 {[%emt 0:01:51]} Rg8+ {[%emt 0:00:45]} 48. Kf6 {[%emt 0:01:09]} Rf8+ {[%emt 0:00:19]} 49. Ke6 {[%emt 0:00:23]} Rd8 {[%emt 0:00:52]} 50. f6 {[%emt 0:00:16]} Rc8 {[%emt 0:00:31]} 51. f7 {[%emt 0:00:18]} Rf8 {[%emt 0:00:30]} 52. Ke7 {[%emt 0:00:18]} Ra8 {[%emt 0:00:28]} 53. Rd7 {[%emt 0:00:11]} Rb8 {[%emt 0:00:33]} 54. Rd8+ {[%emt 0:00:09]} Rxd8 {[%emt 0:00:31]} 55. Kxd8 {[%emt 0:00:07]} Kh7 {[%emt 0:00:04]} 56. f8=Q {[%emt 0:00:17]} Kg6 {[%emt 0:00:07]} 57. Qf4 {[%emt 0:00:14]} Kh5 {[%emt 0:00:26]} 58. Qg3 {[%emt 0:00:15]} Kxh6 {[%emt 0:00:12]} 59. Ke7 {[%emt 0:00:07]} 1-0

[Event "NOR-ch Various 2019"]
[Site "Larvik"]
[Date "2019.07.09"]
[Round "5.18"]
[White "Kjaras, Alf Marius"]
[Black "Nordquelle, Daniel"]
[Result "0-1"]
[ECO "A45"]
[WhiteElo "1860"]
[BlackElo "2181"]
[Annotator "NA"]
[PlyCount "142"]
[EventDate "2019.07.06"]
[EventType "swiss"]
[EventCountry "NOR"]
[SourceTitle "playchess.com"]
[Source "ChessBase"]
[SourceQuality "1"]
[TimeControl "40/5400+30:1800+30"]

1. d4 {[%emt 0:00:00]} Nf6 {[%emt 0:00:42]} 2. Bf4 {[%emt 0:00:00]} g6 {[%emt 0:00:05]} 3. e3 {[%emt 0:00:08]} Bg7 {[%emt 0:00:06]} 4. Nc3 {[%emt 0:00:48]} O-O {[%emt 0:01:17]} 5. h4 {[%emt 0:00:22]} d6 {[%emt 0:01:10]} 6. h5 {[%emt 0:02:18]} Nxh5 {[%emt 0:02:06]} 7. Rxh5 {[%emt 0:00:58]} gxh5 {[%emt 0:00:08]} 8. Qxh5 {[%emt 0:00:27]} f5 {[%emt 0:10:26]} 9. Nf3 {[%emt 0:03:27]} e6 {[%emt 0:02:18]} 10. Bc4 {[%emt 0:06:03]} Qe8 {[%emt 0:03:50]} 11. Qh2 {[%emt 0:03:28]} a6 {[%emt 0:01:33]} 12. O-O-O {[%emt 0:03:02]} Nd7 {[%emt 0:00:35]} 13. Rh1 {[%emt 0:16:11]} Nf6 {[%emt 0:01:18]} 14. Nh4 {[%emt 0:11:48]} b5 {[%emt 0:19:27]} 15. Bb3 {[%emt 0:07:48]} Qh5 {[%emt 0:04:10]} 16. f3 {[%emt 0:05:19]} Bd7 {[%emt 0:20:59]} 17. Ne2 {[%emt 0:04:45]} Nd5 {[%emt 0:00:54]} 18. Ng3 {[%emt 0:01:00]} Qf7 {[%emt 0:06:21]} 19. Nhxf5 {[%emt 0:01:13]} h5 {[%emt 0:01:36]} 20. Nh6+ {[%emt 0:09:01]} Bxh6 {[%emt 0:00:09]} 21. Bxh6 {[%emt 0:00:05]} Rfe8 {[%emt 0:01:07]} 22. Bxd5 {[%emt 0:05:15]} exd5 {[%emt 0:00:09]} 23. Nxh5 {[%emt 0:00:45]} Bf5 {[%emt 0:01:43]} 24. Nf4 {[%emt 0:08:10]} Bh7 {[%emt 0:04:26]} 25. Nh5 {[%emt 0:08:35]} Re6 {[%emt 0:04:39]} 26. Bg5 {[%emt 0:00:40]} Qg6 {[%emt 0:02:55]} 27. Nf6+ {[%emt 0:00:37]} Rxf6 {[%emt 0:00:10]} 28. Qxh7+ {[%emt 0:00:13]} Qxh7 {[%emt 0:00:11]} 29. Rxh7 {[%emt 0:00:07]} Kxh7 {[%emt 0:05:27]} 30. Bxf6 {[%emt 0:00:04]} Kg6 {[%emt 0:00:07]} 31. Bh4 {[%emt 0:00:19]} Rh8 {[%emt 0:00:04]} 32. g3 {[%emt 0:00:43]} Rf8 {[%emt 0:00:12]} 33. f4 {[%emt 0:00:53]} Kf5 {[%emt 0:00:04]} 34. Kd2 {[%emt 0:00:06]} Ke4 {[%emt 0:01:45]} 35. Ke2 {[%emt 0:00:08]} Rh8 {[%emt 0:00:21]} 36. b4 {[%emt 0:01:55]} Ra8 {[%emt 0:03:20]} 37. Kd2 {[%emt 0:00:24]} Rh8 {[%emt 0:00:53]} 38. Ke2 {[%emt 0:00:18]} Rh5 {[%emt 0:01:15]} 39. Kd2 {[%emt 0:00:43]} Kf3 {[%emt 0:00:32]} 40. Kd3 {[%emt 0:00:26]} Kg4 {[%emt 0:00:07]} 41. Bd8 {[%emt 0:31:25]} Rh7 {[%emt 0:30:41]} 42. Bh4 {[%emt 0:00:00]} Rh8 {[%emt 0:00:00]} 43. e4 {[%emt 0:00:00]} dxe4+ {[%emt 0:00:00]} 44. Kxe4 {[%emt 0:00:00]} Re8+ {[%emt 0:00:00]} 45. Kd5 {[%emt 0:00:00]} Re2 {[%emt 0:00:00]} 46. c3 {[%emt 0:00:00]} Rc2 {[%emt 0:00:00]} 47. Kc6 {[%emt 0:00:00]} Rxc3+ {[%emt 0:00:00]} 48. Kb7 {[%emt 0:00:00]} Rc4 {[%emt 0:00:00]} 49. a3 {[%emt 0:00:00]} Rxd4 {[%emt 0:00:00]} 50. Kxa6 {[%emt 0:00:00]} c6 {[%emt 0:00:00]} 51. Kb6 {[%emt 0:00:00]} Rc4 {[%emt 0:00:00]} 52. Be7 {[%emt 0:00:00]} d5 {[%emt 0:00:00]} 53. Bc5 {[%emt 0:00:00]} Rc3 {[%emt 0:00:00]} 54. Bd4 {[%emt 0:01:34]} Rc4 {[%emt 0:00:00]} 55. Bc5 {[%emt 0:00:10]} Kf5 {[%emt 0:00:00]} 56. Kxc6 {[%emt 0:04:49]} d4 {[%emt 0:00:00]} 57. Kxb5 {[%emt 0:00:06]} d3 {[%emt 0:00:00]} 58. Kxc4 {[%emt 0:00:05]} d2 {[%emt 0:00:00]} 59. b5 {[%emt 0:00:12]} d1=Q {[%emt 0:00:00]} 60. b6 {[%emt 0:00:29]} Qa4+ {[%emt 0:00:00]} 61. Kd5 {[%emt 0:01:16]} Qd7+ {[%emt 0:00:00]} 62. Bd6 {[%emt 0:00:53]} Qb7+ {[%emt 0:00:40]} 63. Kc5 {[%emt 0:00:10]} Ke4 {[%emt 0:00:04]} 64. Be5 {[%emt 0:00:48]} Qd5+ {[%emt 0:00:14]} 65. Kb4 {[%emt 0:00:07]} Qc6 {[%emt 0:00:58]} 66. Ka5 {[%emt 0:01:34]} Kd5 {[%emt 0:01:31]} 67. Ka6 {[%emt 0:00:45]} Kc5 {[%emt 0:00:30]} 68. Bd4+ {[%emt 0:00:31]} Kxd4 {[%emt 0:00:07]} 69. Ka7 {[%emt 0:00:12]} Qa4+ {[%emt 0:00:06]} 70. Kb8 {[%emt 0:00:14]} Kc5 {[%emt 0:00:27]} 71. b7 {[%emt 0:00:26]} Kb6 {[%emt 0:00:06]} 0-1